Cogmind - Beta 9.6 @@@ ROGUE MODE // 2020.05.09 @ 21:57:22 Player: Judas Result: Destroyed by as-79671 with Assembled Blade Performance ------------- Evolutions (0) 0 Regions Visited (2) 400 Robots Destroyed (4) 20 Value Destroyed (121) 121 Prototype IDs (0) 0 Alien Tech Used (0) 0 Bonus (0) 0 TOTAL SCORE: 541 Bonus ------- None Cogmind --------- Core Integrity 0/250 Matter 300/300 Energy 100/100 System Corruption 0% Temperature Cool (0) Movement Core (200) Ox3 Location -10/Mines Parts ------- > --- POWER (1) -------- (None) > --- PROPULSION (2) --- (None) > --- UTILITY (2) ------ Small Storage Unit Medium Storage Unit > --- WEAPON (2) ------- (None) > --- INVENTORY (10) --- Light Ion Engine Light Treads Wheel Wheel Compact Wheel Small Storage Unit Medium Laser Peak State ------------ > --- POWER ------------ Light Nuclear Core > --- PROPULSION ------- Aluminum Leg Aluminum Leg > --- UTILITY ---------- Small Storage Unit Medium Storage Unit > --- WEAPON ----------- EM Pulse Gun Assault Rifle > --- INVENTORY -------- Light Ion Engine Light Treads Wheel Wheel Compact Wheel Small Storage Unit Medium Laser [Rating: 9] Favorites ----------- Power Light Ion Engine Engine Light Ion Engine Power Core Light Nuclear Core Propulsion Aluminum Leg Leg Aluminum Leg Utility Small Storage Unit Storage Small Storage Unit Weapon Assault Rifle Energy Gun EM Pulse Gun Ballistic Gun Assault Rifle Build | -11 -10 -10 ------- Run | Scr Mat Min Slots Evolved . | . . . Power . | . . . Propulsion . | . . . Utility . | . . . Weapon . | . . . Parts Attached 4 | 2 1 1 Power 1 | . . 1 Engine . | . . . Core 1 | . . 1 Reactor . | . . . Propulsion . | . . . Treads . | . . . Leg . | . . . Wheel . | . . . Hover . | . . . Flight . | . . . Utility 2 | 1 1 . Device . | . . . Storage 2 | 1 1 . Processor . | . . . Hackware . | . . . Protection . | . . . Artifact . | . . . Weapon 1 | 1 . . Energy Gun . | . . . Energy Cannon . | . . . Ballistic Gun 1 | 1 . . Ballistic Cannon . | . . . Launcher . | . . . Special Weapon . | . . . Impact Weapon . | . . . Slashing Weapon . | . . . Piercing Weapon . | . . . Special Melee Weapon . | . . . Unidentified Prototypes . | . . . Parts Lost 5 | . . 5 Power 1 | . . 1 Propulsion 2 | . . 2 Utility . | . . . Weapon 2 | . . 2 Highest Loss Streak 5 | . . 5 Average Slot Usage (%) 86 | . 100 77 Engine 9 | . 14 5 Core 2 | . . 3 Leg 23 | . 28 19 Storage 28 | . 28 28 Energy Gun 11 | . 14 9 Ballistic Gun 11 | . 14 9 Naked Turns . | . . . Heaviest Build 21 | 15 19 21 Greatest Support 20 | 20 20 20 Greatest Overweight (x) 3 | . . 3 Average Overweight (x) . | . . . Largest Inventory Capacity 10 | 8 10 10 Average Capacity 9 | 7 8 10 Most Carried 7 | 6 7 7 Average Carried 6 | 5 6 7 Final Capacity 10 | 8 10 10 Final Carried 7 | 6 7 7 Class Distribution -------------------- 100% | Mutant Dominant Class ---------------- Mutant | -10/Materials Mutant | -10/Mines Resources | -11 -10 -10 ----------- Run | Scr Mat Min Matter Collected 271 | 223 . 48 Remotely . | . . . Salvage Created 181 | 53 . 128 Parts 12 | 3 . 9 Haulers Intercepted . | . . . Recyclers Shooed . | . . . Parts Field Recycled . | . . . Retrieved Matter . | . . . Parts Self-Destructed . | . . . Prevented . | . . . Kills | -11 -10 -10 ------- Run | Scr Mat Min Combat Hostiles Destroyed 3 | . . 3 Guns 3 | . . 3 Classes Destroyed 2 | 1 . 1 Recycler 1 | 1 . . Grunt 3 | . . 3 Best Kill Streak 1 | 1 . 1 Combat Bots Only 1 | . . 1 Max Kills in Single Turn 1 | 1 . 1 Gunslinging . | . . . Exploded . | . . . Melee . | . . . Uniques/NPCs Destroyed . | . . . Combat | -11 -10 -10 -------- Run | Scr Mat Min Damage Taken 853 | . . 853 Core 268 | . . 268 Absorbed by Shields . | . . . Core Remaining (%) 100 | 100 . . Volleys Fired 13 | 1 4 8 Largest 2 | 2 2 2 Hottest 60 | 60 60 60 Shots Fired 23 | 2 8 13 Gun 23 | 2 8 13 Cannon . | . . . Launcher . | . . . Special . | . . . Kinetic 13 | 1 4 8 Thermal . | . . . Explosive . | . . . Electromagnetic 10 | 1 4 5 Robot Hit Streak 7 | 1 4 7 Robot Miss Streak 2 | . 1 2 Penetration Max . | . . . Secondary Targets . | . . . Shots Hit Robots 14 | 1 5 8 Core Hits 8 | 1 1 6 Critical Hits . | . . . Critical Kills . | . . . Critical Parts Destroyed . | . . . Melee Attacks . | . . . Impact . | . . . Slashing . | . . . Piercing . | . . . Sneak Attacks . | . . . Combat Hostiles . | . . . Follow-up Attacks . | . . . Damage Inflicted 226 | 15 105 106 Guns 199 | 15 78 106 Cannons . | . . . Explosions 27 | . 27 . Melee . | . . . Ramming . | . . . Kinetic 95 | 15 38 42 Thermal 27 | . 27 . Explosive . | . . . Electromagnetic 104 | . 40 64 Impact . | . . . Slashing . | . . . Piercing . | . . . Highest Corruption . | . . . Average Corruption . | . . . Corruption Purged . | . . . Overload Shots . | . . . Overflow Damage . | . . . Projectiles . | . . . Explosions . | . . . Melee . | . . . Knockbacks . | . . . Impact . | . . . Kinetic . | . . . Secondary . | . . . Self-Inflicted Damage . | . . . Shots . | . . . Rammed . | . . . Targets Rammed . | . . . Kicked . | . . . Crushed . | . . . Highest Temperature 18 | . . 18 Average Temperature 10 | . . 10 Received Heat Transfer 39 | . . 39 Siege Activations . | . . . Robots Corrupted . | . . . Combat Hostiles . | . . . Parts Fried . | . . . Impact Corruptions . | . . . Robots Melted . | . . . Combat Hostiles . | . . . Parts Melted . | . . . Heat Transferred 50 | . 50 . Parts Sabotaged . | . . . Parts Stolen . | . . . Parts Stripped . | . . . Power Chain Reactions 1 | . 1 . Missiles Intercepted . | . . . Alert | -11 -10 -10 ------- Run | Scr Mat Min Peak Influence 97 | 5 18 97 Average Influence 32 | 4 11 49 Maximum Alert Level . | . . . Low Security (%) 100 | 100 100 100 Level 1 . | . . . Level 2 . | . . . Level 3 . | . . . Level 4 . | . . . Level 5 . | . . . High Security . | . . . Max Security . | . . . Squads Dispatched . | . . . Investigation . | . . . Extermination . | . . . Reinforcement . | . . . Assault . | . . . Garrison . | . . . Intercept . | . . . Construction Impeded . | . . . Haulers Reinforced . | . . . Stealth | -11 -10 -10 --------- Run | Scr Mat Min Distress Signals . | . . . Communications Jammed . | . . . Distress Signals . | . . . Times Spotted 13 | . 3 10 Peak Tracking Total 5 | . 2 5 Tactical Retreats 2 | . . 2 Traps | -11 -10 -10 ------- Run | Scr Mat Min Traps Triggered . | . . . Indirectly . | . . . Trap Hack Attempts . | . . . Triggered . | . . . Disarmed . | . . . Reprogrammed . | . . . Reused . | . . . Traps Extracted . | . . . Installed . | . . . Triggered . | . . . Machines | -11 -10 -10 ---------- Run | Scr Mat Min Machines Disabled . | . . . Max in Single Turn . | . . . Machines Sabotaged . | . . . Garrisons Compromised . | . . . Overloaded Fab Kills . | . . . Fab Network Shutdowns . | . . . Hacking | -11 -10 -10 --------- Run | Scr Mat Min Machines Accessed 2 | . 1 1 Terminals 2 | . 1 1 Fabricators . | . . . Repair Stations . | . . . Recycling Units . | . . . Scanalyzers . | . . . Garrison Access . | . . . Total Hacks 4 | . 1 3 Successful 2 | . 1 1 Failed 2 | . . 2 Catastrophic . | . . . Database Lockouts . | . . . Manual 4 | . 1 3 Terminals 4 | . 1 3 Fabricators . | . . . Repair Stations . | . . . Recycling Units . | . . . Scanalyzers . | . . . Garrison Access . | . . . Terminal Hacks 1 | . . 1 Robot Analysis 1 | . . 1 Fabricator Hacks . | . . . Repair Station Hacks . | . . . Recycling Unit Hacks . | . . . Scanalyzer . | . . . Garrison Access Hacks . | . . . Unauthorized Hacks 1 | . 1 . Terminals 1 | . 1 . Botnet 1 | . 1 . Fabricators . | . . . Repair Stations . | . . . Recycling Units . | . . . Scanalyzers . | . . . Garrison Access . | . . . Data Cores Recovered . | . . . Used . | . . . Hacking Detections 1 | . 1 . Full Trace Events . | . . . Feedback Events . | . . . Feedback Blocked . | . . . Robot Schematics Acquired . | . . . Robots Built . | . . . Matter . | . . . Time . | . . . Total Robot Build Rating . | . . . Part Schematics Acquired . | . . . Parts Built . | . . . Matter . | . . . Time . | . . . Total Part Build Rating . | . . . Parts Repaired . | . . . Time . | . . . Parts Recycled . | . . . Recycled Matter . | . . . Retrieved Matter . | . . . Retrieved Components . | . . . Parts Scanalyzed . | . . . Part Schematics Acquired . | . . . Parts Damaged . | . . . Bothacking | -11 -10 -10 ------------ Run | Scr Mat Min Used RIF Installer . | . . . Robots Hacked . | . . . Non-combat . | . . . Combat . | . . . Robot Hacks Applied . | . . . Relay Couplers Released . | . . . Robots Rewired . | . . . Allies Hacked . | . . . Hacks Repelled . | . . . Allies | -11 -10 -10 -------- Run | Scr Mat Min Total Allies . | . . . Largest Group . | . . . Highest-Rated Group . | . . . Highest-Rated Ally . | . . . Total Orders . | . . . Ally Attacks . | . . . Total Damage . | . . . Kills . | . . . Allies Corrupted . | . . . Allies Melted . | . . . Intel | -11 -10 -10 ------- Run | Scr Mat Min Robot Analysis Total 1 | . . 1 Derelict Logs Recovered 1 | . . 1 Drone Launches . | . . . Drone Recoveries . | . . . Exploration | -11 -10 -10 ------------- Run | Scr Mat Min Turns Passed 586 | 24 230 332 Spaces Moved 403 | 14 181 208 Core 39 | . . 39 Treads . | . . . Legs 364 | 14 181 169 Wheels . | . . . Hover . | . . . Flight . | . . . Fastest Speed 120 | 120 120 120 Average Speed 132 | 120 120 144 Slowest Speed 200 | 120 120 200 Overloaded Moves . | . . . Propulsion Burnouts . | . . . Robots Hopped . | . . . Cave-ins Triggered . | . . . Exploration Rate (%) 34 | 2 52 50 Regions Visited 2 Branch Regions 1 Pre-discovered Areas . | . . . Known Exits Taken . | . . . Unknown Exits Taken 2 | 1 1 . Scrap Searched . | . . . Spaces Dug . | . . . Terrain Destroyed 2 | . 2 . Melee . | . . . Projectile . | . . . AOE 2 | . 2 . Actions | -11 -10 -10 --------- Run | Scr Mat Min Total 429 | 18 185 226 Wait 8 | . . 8 Move 401 | 13 180 208 Hop . | . . . Pick Up 1 | 1 . . Fast Attach 2 | 1 . 1 Attach . | . . . Detach . | . . . Swap 2 | 1 1 . Drop 2 | 1 . 1 Fire 13 | 1 4 8 Melee . | . . . Ram . | . . . Kick . | . . . Crush . | . . . Escape Stasis . | . . . Rewire . | . . . Trap . | . . . Miscellaneous . | . . . Route ------- -11/Scrapyard -10/Materials (discovered 2 exits: [*Mat] / *Min) -10/Mines History --------- Turn | Location | Event 6 | -11/Scrapyard | Discovered new exit (range 3) 25 | -11/Scrapyard | Entered Materials 150 | -10/Materials | Discovered new exit (range 10) 228 | -10/Materials | Discovered new exit (range 7) 255 | -10/Materials | Entered Mines 300 | -10/Mines | Build established: Mutant 344 | -10/Mines | Assembled infested the area 349 | -10/Mines | Assisted by a Guerilla fighting off Assembled 540 | -10/Mines | Lost 5 parts (1p2n2w) 559 | -10/Mines | Core integrity fell below 50% 581 | -10/Mines | Core integrity fell below 20% 587 | -10/Mines | Destroyed by as-79671 with Assembled Blade Last Messages --------------- 00483_ K-01 Serf collects debris. 00483_ D-53 Grenadier destroyed. 00485_ The unstable cave ceiling collapses. 00486_ D-53 Grenadier destroyed. 00487_ K-01 Serf collects debris. 00488_ The unstable cave ceiling collapses. 00490_ as-79671 sneak attacks. 00491_ Acquired 1 matter. 00495_ K-01 Serf destroyed. 00496_ The unstable cave ceiling collapses. 00496_ K-01 Serf collects debris. 00499_ as-79671 sneak attacks. 00499_ K-01 Serf destroyed. 00501_ The unstable cave ceiling collapses. 00503_ U-05 Engineer lays Concrete. 00509_ Aluminum Leg destroyed. 00509_ U-05 Engineer lays Concrete. 00515_ as-79671 sneak attacks. 00543_ Acquired derelict log, extracted data. Data stored: Mines entrances (x2). Map ----- +----------------------------------------------------+ | ????????????????????????????????????????#?????# | | ????????????????????????????????????????# ????# | | ???????????????????????????????????#????# ???## | | ???????????????????????????????????# ### #### | | ???????????????????????????????????# | | ???????????????????????????????????# % | | ???????????????????????????????########### * | | ??????????????????????????????? # | | ????????????????????????####??? ## | | ???????????????????????? #?????########## ##? | | ???????????????????????? #??????????????## #?? | | ????????????????????????# #???????????????# #?? | | ????????????????????????# #???????????????# #?? | | ????????????????????????# #??????????????## #? | | ????????????????????##### #???????????#### ## | | ????????????????????# #???????????# # | | ????????????????????# ### #??????????## | | ????????????????????# #?# ############ | | ????????????????????# #?# % | | ????????????????????# #?# | | ????????????????????# #?############ | | ????????????????????# #????????????# | | ????????????????????# #????????????# | | ???????????????????## ######???????# | | ???????????????????# #???????# | | ???????????????????# a@ #??????# ## | | ???????????????????# """" #??????# #### # | | ???????????????????# """" #??????# ##??# # | | ???????????????????# """" #??????## ##???# # | | ???????????????????# #???????####?????# ## | | ???????????????????# #?????????????????###? | | ???????????????????#########????????????????????? | | ????????????????????????????????????????????????? | | ????????????????????????????????????????????????? | | ????????????????????????????????????????????????? | | ????????????????????????????????????????????????? | | ????????????????????????????????????????????????? | | ????????????????????????????????????????????????? | | ????????????????????????????????????????????????? | | ????????????????????????????????????????????????? | | ????????????????????????????????????????????????? | | ????????????????????????????????????????????????? | | ????????????????????????????????????????????????? | | ????????????????????????????????????????????????? | | ????????????????????????????????????????????????? | | ????????????????????????????????????????????????? | | ????????????????????????????????????????????????? | | ????????????????????????????????????????????????? | | ????????????????????????????????????????????????? | | ????????????????????????????????????????????????? | +----------------------------------------------------+ Best States ------------- Heat Dissipation 25 Energy Generation 14 Energy Capacity 160 Matter Stores 300 Matter Capacity 300 Sight Range 16 Terrain Scan Density 10 Evasion (%) 40 Item Schematics ----------------- None Robot Schematics ------------------ None Fabricated ------------ Nothing Alien Tech Used ----------------- None Achievements -------------- None Challenges ------------ None Game ------ Seed AdvancedFlyingGravjet Manual? 0 Play Time 00:08:21 Cumulative 57.7 hours Start 2020.05.09 @ 21:51:49 End 2020.05.09 @ 21:57:22 Sessions 1 Manual Loads 0 Difficulty Rogue Special Mode None Game No. 104 Rogue 104 Adventurer 0 Explorer 0 Win Type - Total 0 Types 0/0/0/0/0/0/0 Lore% 30 Gallery% 43 Achievement% 32 Wizard Run 0 Options --------- ASCII 0 Keyboard 0 Movement Mouse Keybinds 0 Fullscreen 2 Font 18/SmallcapsGlow Map View 76x50 Tactical HUD 1 Map Filters NONE Filters NONE Steam 1 RUN: cc7311de-52df-4bc7-9084-d6fc34451471